[Event "Late-Titled-Tuesday-Blitz-March-19-2024"]
[Site "Chess.com"]
[Date "2024.03.19"]
[Round "6"]
[White "Heydarli77"]
[Black "AradNazari"]
[Result "0-1"]
[WhiteElo "2386"]
[BlackElo "2764"]
[TimeControl "180+1"]
[EndTime "15:08:21 PDT"]
[Termination "AradNazari won on time"]

1. d4 {[%clk 0:03:00.9]} 1... Nf6 {[%clk 0:02:59.7]} 2. Nf3 {[%clk 0:03:00.2]}
2... g6 {[%clk 0:03:00]} 3. b3 {[%clk 0:02:58.5]} 3... Bg7 {[%clk 0:03:00.4]} 4.
Bb2 {[%clk 0:02:58.6]} 4... d5 {[%clk 0:03:00.8]} 5. g3 {[%clk 0:02:57.3]} 5...
O-O {[%clk 0:03:01.4]} 6. Bg2 {[%clk 0:02:57.3]} 6... c6 {[%clk 0:03:01.9]} 7.
O-O {[%clk 0:02:57.4]} 7... a5 {[%clk 0:03:02.5]} 8. a4 {[%clk 0:02:56]} 8...
Bf5 {[%clk 0:03:00.9]} 9. Nbd2 {[%clk 0:02:54.8]} 9... Ne4 {[%clk 0:03:01]} 10.
Nxe4 {[%clk 0:02:51]} 10... Bxe4 {[%clk 0:03:01.9]} 11. Qd2 {[%clk 0:02:44.5]}
11... Nd7 {[%clk 0:02:56.5]} 12. Ne5 {[%clk 0:02:40.6]} 12... Bxg2 {[%clk
0:02:54.8]} 13. Kxg2 {[%clk 0:02:40.9]} 13... Nxe5 {[%clk 0:02:45.1]} 14. dxe5
{[%clk 0:02:41.1]} 14... Qc7 {[%clk 0:02:37.6]} 15. f4 {[%clk 0:02:39.2]} 15...
Rfd8 {[%clk 0:02:38.2]} 16. e3 {[%clk 0:02:38]} 16... e6 {[%clk 0:02:37.3]} 17.
h4 {[%clk 0:02:31.1]} 17... h5 {[%clk 0:02:35.4]} 18. Rfd1 {[%clk 0:02:28.6]}
18... Bf8 {[%clk 0:02:33.4]} 19. Qd3 {[%clk 0:02:24.4]} 19... c5 {[%clk
0:02:27.9]} 20. Qb5 {[%clk 0:02:20.5]} 20... Qc6 {[%clk 0:02:22.8]} 21. c4
{[%clk 0:02:11.8]} 21... Rd7 {[%clk 0:01:46.6]} 22. cxd5 {[%clk 0:02:08.7]}
22... Rxd5 {[%clk 0:01:41]} 23. Qxc6 {[%clk 0:02:06.4]} 23... bxc6 {[%clk
0:01:41.3]} 24. e4 {[%clk 0:02:02.5]} 24... Rxd1 {[%clk 0:01:41.2]} 25. Rxd1
{[%clk 0:02:03]} 25... Rb8 {[%clk 0:01:41.9]} 26. Bc3 {[%clk 0:02:02.4]} 26...
Rxb3 {[%clk 0:01:36.7]} 27. Bxa5 {[%clk 0:02:02.5]} 27... Ra3 {[%clk 0:01:34.5]}
28. Bc7 {[%clk 0:01:55.3]} 28... Rxa4 {[%clk 0:01:31.4]} 29. Rd8 {[%clk
0:01:55.2]} 29... Kg7 {[%clk 0:01:31.8]} 30. Rc8 {[%clk 0:01:51.7]} 30... c4
{[%clk 0:00:26.8]} 31. Bd8 {[%clk 0:01:30.7]} 31... Kh7 {[%clk 0:00:27.1]} 32.
Rxc6 {[%clk 0:01:23.7]} 32... Ra2+ {[%clk 0:00:16.7]} 33. Kf3 {[%clk 0:01:19.7]}
33... Rc2 {[%clk 0:00:15.6]} 34. Rc8 {[%clk 0:01:15.8]} 34... Rc1 {[%clk
0:00:13.6]} 35. Ba5 {[%clk 0:01:14]} 35... Kg7 {[%clk 0:00:07.8]} 36. Bd8 {[%clk
0:01:10.5]} 36... Kh7 {[%clk 0:00:08.1]} 37. Bf6 {[%clk 0:01:10.3]} 37... Bg7
{[%clk 0:00:08.4]} 38. Ke2 {[%clk 0:01:06.5]} 38... c3 {[%clk 0:00:08]} 39. Rc7
{[%clk 0:01:01.8]} 39... Kg8 {[%clk 0:00:07.3]} 40. Rc8+ {[%clk 0:00:49.3]}
40... Kh7 {[%clk 0:00:08]} 41. Kd3 {[%clk 0:00:48]} 41... Rd1+ {[%clk 0:00:07]}
42. Kc2 {[%clk 0:00:47]} 42... Rd2+ {[%clk 0:00:05.8]} 43. Kxc3 {[%clk
0:00:46.3]} 43... Rg2 {[%clk 0:00:06.7]} 44. Kd4 {[%clk 0:00:45.3]} 44... Rxg3
{[%clk 0:00:07.1]} 45. Rc7 {[%clk 0:00:36.4]} 45... Kg8 {[%clk 0:00:07.5]} 46.
Ra7 {[%clk 0:00:27.9]} 46... Rg4 {[%clk 0:00:07.5]} 47. Ke3 {[%clk 0:00:26.3]}
47... Rg3+ {[%clk 0:00:06.6]} 48. Kf2 {[%clk 0:00:25.9]} 48... Rd3 {[%clk
0:00:05.2]} 49. Bg5 {[%clk 0:00:25.7]} 49... Rd4 {[%clk 0:00:03.3]} 50. Ke3
{[%clk 0:00:25.1]} 50... Rc4 {[%clk 0:00:04]} 51. Rd7 {[%clk 0:00:24.2]} 51...
Rc8 {[%clk 0:00:03.8]} 52. Rd8+ {[%clk 0:00:23.9]} 52... Rxd8 {[%clk 0:00:03.7]}
53. Bxd8 {[%clk 0:00:24.2]} 53... Kf8 {[%clk 0:00:04.6]} 54. Bf6 {[%clk
0:00:23.2]} 54... Bh6 {[%clk 0:00:02.8]} 55. Bg5 {[%clk 0:00:22.3]} 55... Bg7
{[%clk 0:00:02.9]} 56. Kd4 {[%clk 0:00:22.1]} 56... Ke8 {[%clk 0:00:03.2]} 57.
Bf6 {[%clk 0:00:21.2]} 57... Bf8 {[%clk 0:00:03.8]} 58. Ke3 {[%clk 0:00:20.4]}
58... Kd7 {[%clk 0:00:04.2]} 59. Kd4 {[%clk 0:00:20.2]} 59... Kc6 {[%clk
0:00:04.4]} 60. Kc4 {[%clk 0:00:20.5]} 60... Bc5 {[%clk 0:00:04.3]} 61. Bg5
{[%clk 0:00:20.4]} 61... Bf2 {[%clk 0:00:04.5]} 62. Bf6 {[%clk 0:00:19.6]} 62...
Bg3 {[%clk 0:00:05]} 63. Bg5 {[%clk 0:00:20]} 63... Kb6 {[%clk 0:00:05.6]} 64.
Kb4 {[%clk 0:00:19.9]} 64... Be1+ {[%clk 0:00:04.1]} 65. Kc4 {[%clk 0:00:20.2]}
65... Kc6 {[%clk 0:00:04.8]} 66. Bf6 {[%clk 0:00:19]} 66... Bf2 {[%clk
0:00:05.2]} 67. Bg5 {[%clk 0:00:18.8]} 67... Bg3 {[%clk 0:00:05.8]} 68. Kb4
{[%clk 0:00:17.8]} 68... Kb6 {[%clk 0:00:05]} 69. Bd8+ {[%clk 0:00:15.3]} 69...
Ka6 {[%clk 0:00:03.1]} 70. Bg5 {[%clk 0:00:15.9]} 70... Bf2 {[%clk 0:00:03.7]}
71. Bd8 {[%clk 0:00:13.8]} 71... Kb7 {[%clk 0:00:04]} 72. Kb5 {[%clk 0:00:12.7]}
72... Kc8 {[%clk 0:00:04.4]} 73. Bg5 {[%clk 0:00:12.6]} 73... Kb7 {[%clk
0:00:05.1]} 74. Bf6 {[%clk 0:00:11.6]} 74... Bg1 {[%clk 0:00:04.3]} 75. Bg5
{[%clk 0:00:12.2]} 75... Be3 {[%clk 0:00:04.7]} 76. Kb4 {[%clk 0:00:09.7]} 76...
Ka6 {[%clk 0:00:04]} 77. Kc4 {[%clk 0:00:09.2]} 77... Ka5 {[%clk 0:00:04.1]} 78.
Kd3 {[%clk 0:00:08.9]} 78... Bf2 {[%clk 0:00:04.6]} 79. Ke2 {[%clk 0:00:07.5]}
79... Bg3 {[%clk 0:00:03.8]} 80. Kf3 {[%clk 0:00:07.6]} 80... Be1 {[%clk
0:00:03.4]} 81. f5 {[%clk 0:00:07.5]} 81... Kb5 {[%clk 0:00:02.8]} 82. fxg6
{[%clk 0:00:06.6]} 82... fxg6 {[%clk 0:00:02.9]} 83. Be7 {[%clk 0:00:06.1]}
83... Kc4 {[%clk 0:00:03.4]} 84. Kf4 {[%clk 0:00:05.6]} 84... Bd2+ {[%clk
0:00:03.5]} 85. Kf3 {[%clk 0:00:05.9]} 85... Kd4 {[%clk 0:00:03.9]} 86. Bd6
{[%clk 0:00:05]} 86... Be1 {[%clk 0:00:03.1]} 87. Be7 {[%clk 0:00:02.8]} 87...
Kxe5 {[%clk 0:00:03.1]} 88. Bg5 {[%clk 0:00:02.9]} 88... Kd4 {[%clk 0:00:03.4]}
89. Bf6+ {[%clk 0:00:02.8]} 89... Kd3 {[%clk 0:00:03.9]} 90. Be7 {[%clk
0:00:02.2]} 90... Bc3 {[%clk 0:00:04.1]} 91. Kf4 {[%clk 0:00:02.3]} 91... Bd2+
{[%clk 0:00:03.3]} 92. Ke5 {[%clk 0:00:02.5]} 92... Be3 {[%clk 0:00:02.7]} 93.
Kxe6 {[%clk 0:00:02.2]} 93... Kxe4 {[%clk 0:00:03.6]} 94. Kf7 {[%clk 0:00:02.6]}
94... Kf5 {[%clk 0:00:04.1]} 95. Bd8 {[%clk 0:00:01.8]} 95... Bf4 {[%clk
0:00:04.2]} 96. Kg7 {[%clk 0:00:01.6]} 96... Be5+ {[%clk 0:00:03.8]} 97. Kh6
{[%clk 0:00:01.3]} 97... Bf6 {[%clk 0:00:03.9]} 0-1

[Event "Late-Titled-Tuesday-Blitz-March-19-2024"]
[Site "Chess.com"]
[Date "2024.03.19"]
[Round "7"]
[White "Mikasinski"]
[Black "Sandstad"]
[Result "1-0"]
[WhiteElo "2644"]
[BlackElo "2501"]
[TimeControl "180+1"]
[EndTime "15:11:56 PDT"]
[Termination "Mikasinski won by resignation"]

1. e4 {[%clk 0:02:58.7]} 1... e5 {[%clk 0:03:00]} 2. Nf3 {[%clk 0:02:58.5]} 2...
Nc6 {[%clk 0:03:00.7]} 3. Nc3 {[%clk 0:02:58.7]} 3... Nf6 {[%clk 0:03:00.6]} 4.
Bb5 {[%clk 0:02:59.4]} 4... Nd4 {[%clk 0:02:59.1]} 5. Nxd4 {[%clk 0:02:59.6]}
5... exd4 {[%clk 0:02:58.6]} 6. e5 {[%clk 0:03:00.5]} 6... dxc3 {[%clk
0:02:54.5]} 7. exf6 {[%clk 0:03:01]} 7... Qxf6 {[%clk 0:02:50.9]} 8. dxc3 {[%clk
0:03:00.4]} 8... Qe5+ {[%clk 0:02:47.5]} 9. Be2 {[%clk 0:02:59.5]} 9... Bc5
{[%clk 0:02:28.5]} 10. O-O {[%clk 0:02:59.1]} 10... O-O {[%clk 0:02:28.7]} 11.
Bf3 {[%clk 0:02:47.7]} 11... Qf6 {[%clk 0:02:17.4]} 12. Qd5 {[%clk 0:02:45.2]}
12... d6 {[%clk 0:02:13]} 13. Bg5 {[%clk 0:02:40.1]} 13... Qf5 {[%clk
0:02:02.5]} 14. Qxf5 {[%clk 0:02:13.9]} 14... Bxf5 {[%clk 0:02:03.4]} 15. b4
{[%clk 0:02:14]} 15... Bb6 {[%clk 0:01:59.2]} 16. Bxb7 {[%clk 0:02:14.5]} 16...
Rab8 {[%clk 0:01:54.9]} 17. Bd5 {[%clk 0:02:11.8]} 17... Bxc2 {[%clk 0:01:52.2]}
18. Rfe1 {[%clk 0:02:08.9]} 18... Ba4 {[%clk 0:01:46.4]} 19. Re7 {[%clk
0:02:07.5]} 19... Rfe8 {[%clk 0:01:44.6]} 20. Bxf7+ {[%clk 0:02:07]} 1-0

[Event "Late-Titled-Tuesday-Blitz-March-19-2024"]
[Site "Chess.com"]
[Date "2024.03.19"]
[Round "7"]
[White "ArmanGhevondyanchess"]
[Black "tolimachess"]
[Result "1-0"]
[WhiteElo "2596"]
[BlackElo "2460"]
[TimeControl "180+1"]
[EndTime "15:12:09 PDT"]
[Termination "ArmanGhevondyanchess won by checkmate"]

1. Nf3 {[%clk 0:03:00.9]} 1... Nf6 {[%clk 0:02:56.5]} 2. g3 {[%clk 0:03:00.9]}
2... g6 {[%clk 0:02:57.4]} 3. b3 {[%clk 0:03:00.6]} 3... Bg7 {[%clk 0:02:58.3]}
4. Bb2 {[%clk 0:03:01.5]} 4... O-O {[%clk 0:02:58.6]} 5. c4 {[%clk 0:03:02.1]}
5... c5 {[%clk 0:02:58.9]} 6. Bg2 {[%clk 0:03:02.6]} 6... d5 {[%clk 0:02:59.1]}
7. cxd5 {[%clk 0:03:02.7]} 7... Nxd5 {[%clk 0:02:59.9]} 8. Bxg7 {[%clk
0:03:03.4]} 8... Kxg7 {[%clk 0:03:00.4]} 9. O-O {[%clk 0:03:03.6]} 9... Nc6
{[%clk 0:03:00.9]} 10. Qc1 {[%clk 0:02:59.9]} 10... b6 {[%clk 0:03:00.2]} 11. d4
{[%clk 0:02:59.8]} 11... Nxd4 {[%clk 0:02:56.5]} 12. Nxd4 {[%clk 0:02:59.7]}
12... cxd4 {[%clk 0:02:57.4]} 13. Qc4 {[%clk 0:02:58.1]} 13... Bb7 {[%clk
0:02:53.5]} 14. Qxd4+ {[%clk 0:02:58]} 14... Kg8 {[%clk 0:02:52.3]} 15. Rd1
{[%clk 0:02:57.9]} 15... e6 {[%clk 0:02:46.7]} 16. Nc3 {[%clk 0:02:49.9]} 16...
Nxc3 {[%clk 0:02:42.6]} 17. Qxc3 {[%clk 0:02:50.8]} 17... Qe7 {[%clk 0:02:42.5]}
18. Bxb7 {[%clk 0:02:50.7]} 18... Qxb7 {[%clk 0:02:43.4]} 19. Qf6 {[%clk
0:02:41.5]} 19... Qe4 {[%clk 0:02:42.6]} 20. e3 {[%clk 0:02:38.4]} 20... Rac8
{[%clk 0:02:38.2]} 21. Rd7 {[%clk 0:02:34.5]} 21... a5 {[%clk 0:02:32.7]} 22.
Rad1 {[%clk 0:02:32.9]} 22... b5 {[%clk 0:02:24.9]} 23. h4 {[%clk 0:02:28.8]}
23... a4 {[%clk 0:02:19.9]} 24. R7d4 {[%clk 0:02:22.7]} 24... Qc2 {[%clk
0:02:18.5]} 25. bxa4 {[%clk 0:02:14.1]} 25... bxa4 {[%clk 0:02:18.5]} 26. h5
{[%clk 0:02:14.6]} 26... Rc4 {[%clk 0:02:07.7]} 27. h6 {[%clk 0:02:10.5]} 27...
Qxd1+ {[%clk 0:01:50.8]} 28. Rxd1 {[%clk 0:02:09]} 28... Rd8 {[%clk 0:01:51.3]}
29. Qh8+ {[%clk 0:02:06.3]} 29... Kxh8 {[%clk 0:01:50.9]} 30. Rxd8# {[%clk
0:02:07.2]} 1-0

[Event "Late-Titled-Tuesday-Blitz-March-19-2024"]
[Site "Chess.com"]
[Date "2024.03.19"]
[Round "7"]
[White "Likvidator228"]
[Black "FREZZY23"]
[Result "1-0"]
[WhiteElo "2561"]
[BlackElo "2374"]
[TimeControl "180+1"]
[EndTime "15:12:25 PDT"]
[Termination "Likvidator228 won by resignation"]

1. d4 {[%clk 0:03:00.9]} 1... Nf6 {[%clk 0:02:58.9]} 2. Nf3 {[%clk 0:03:00.5]}
2... g6 {[%clk 0:02:58.8]} 3. Bf4 {[%clk 0:03:01]} 3... Bg7 {[%clk 0:02:58.7]}
4. e3 {[%clk 0:03:01.6]} 4... O-O {[%clk 0:02:59]} 5. Nbd2 {[%clk 0:03:01.9]}
5... d6 {[%clk 0:02:55]} 6. h3 {[%clk 0:03:02.3]} 6... c5 {[%clk 0:02:54.4]} 7.
c3 {[%clk 0:03:02.3]} 7... Nc6 {[%clk 0:02:54.8]} 8. Bc4 {[%clk 0:02:59.1]} 8...
d5 {[%clk 0:02:53.2]} 9. Be2 {[%clk 0:02:58.9]} 9... Bf5 {[%clk 0:02:50.2]} 10.
dxc5 {[%clk 0:02:58.9]} 10... Nd7 {[%clk 0:02:48.3]} 11. Nb3 {[%clk 0:02:56.7]}
11... e5 {[%clk 0:02:44.5]} 12. Bg5 {[%clk 0:02:57]} 12... Nf6 {[%clk
0:02:41.4]} 13. O-O {[%clk 0:02:51.8]} 13... h6 {[%clk 0:02:40.9]} 14. Bh4
{[%clk 0:02:52]} 14... Be6 {[%clk 0:02:38.1]} 15. Bb5 {[%clk 0:02:47]} 15... Qc7
{[%clk 0:02:27.8]} 16. Bg3 {[%clk 0:02:36.7]} 16... Nd7 {[%clk 0:02:01.3]} 17.
Nfd4 {[%clk 0:02:28.8]} 17... a6 {[%clk 0:01:54.9]} 18. Nxe6 {[%clk 0:02:28.3]}
18... fxe6 {[%clk 0:01:54.1]} 19. Be2 {[%clk 0:02:27.8]} 19... Ne7 {[%clk
0:01:52.8]} 20. c4 {[%clk 0:02:24.7]} 20... Nxc5 {[%clk 0:01:50.8]} 21. cxd5
{[%clk 0:02:25.1]} 21... Nxb3 {[%clk 0:01:50.9]} 22. d6 {[%clk 0:02:22.2]} 1-0

[Event "Late-Titled-Tuesday-Blitz-March-19-2024"]
[Site "Chess.com"]
[Date "2024.03.19"]
[Round "7"]
[White "andrzej"]
[Black "Chempiblinka"]
[Result "1-0"]
[WhiteElo "2512"]
[BlackElo "2350"]
[TimeControl "180+1"]
[EndTime "15:12:41 PDT"]
[Termination "andrzej won by resignation"]

1. e4 {[%clk 0:02:54.5]} 1... c5 {[%clk 0:02:58.9]} 2. Nf3 {[%clk 0:02:53]} 2...
Nc6 {[%clk 0:02:58.5]} 3. d4 {[%clk 0:02:53.7]} 3... cxd4 {[%clk 0:02:58.2]} 4.
Nxd4 {[%clk 0:02:54.6]} 4... g6 {[%clk 0:02:58.3]} 5. c4 {[%clk 0:02:54.5]} 5...
Nf6 {[%clk 0:02:57.1]} 6. Nc3 {[%clk 0:02:54.2]} 6... Nxd4 {[%clk 0:02:57.7]} 7.
Qxd4 {[%clk 0:02:54.1]} 7... d6 {[%clk 0:02:58.4]} 8. Bg5 {[%clk 0:02:49.8]}
8... Bg7 {[%clk 0:02:57.8]} 9. Qd2 {[%clk 0:02:48.6]} 9... O-O {[%clk
0:02:57.5]} 10. Bd3 {[%clk 0:02:48.6]} 10... a5 {[%clk 0:02:57.1]} 11. O-O
{[%clk 0:02:45.6]} 11... a4 {[%clk 0:02:57.5]} 12. Rab1 {[%clk 0:02:35.4]} 12...
Qa5 {[%clk 0:02:55.4]} 13. Nd5 {[%clk 0:02:22.8]} 13... Nxd5 {[%clk 0:02:12.7]}
14. Qxa5 {[%clk 0:02:23.1]} 14... Rxa5 {[%clk 0:02:13]} 15. exd5 {[%clk
0:02:23.5]} 15... Re8 {[%clk 0:02:03.9]} 16. b4 {[%clk 0:02:16.2]} 16... axb3
{[%clk 0:02:01.6]} 17. axb3 {[%clk 0:02:17.1]} 17... Ra2 {[%clk 0:01:55.9]} 18.
Rfe1 {[%clk 0:02:15.4]} 18... Kf8 {[%clk 0:01:51]} 19. Re2 {[%clk 0:02:13.1]}
19... Be5 {[%clk 0:01:46.6]} 20. Rxa2 {[%clk 0:02:08.5]} 20... f5 {[%clk
0:01:43.7]} 21. Ra8 {[%clk 0:02:02.5]} 21... Kf7 {[%clk 0:01:42.5]} 22. Bc1
{[%clk 0:01:55.2]} 22... Bd4 {[%clk 0:01:42.4]} 23. Bb2 {[%clk 0:01:54.1]} 23...
Bc5 {[%clk 0:01:41.4]} 24. Bc3 {[%clk 0:01:54.4]} 1-0

[Event "Late-Titled-Tuesday-Blitz-March-19-2024"]
[Site "Chess.com"]
[Date "2024.03.19"]
[Round "7"]
[White "expii"]
[Black "ploxoi"]
[Result "1/2-1/2"]
[WhiteElo "2198"]
[BlackElo "2408"]
[TimeControl "180+1"]
[EndTime "15:12:46 PDT"]
[Termination "Game drawn by repetition"]

1. e4 {[%clk 0:03:00.9]} 1... c6 {[%clk 0:03:00]} 2. d4 {[%clk 0:03:00.7]} 2...
d5 {[%clk 0:03:00.5]} 3. f3 {[%clk 0:02:59.2]} 3... dxe4 {[%clk 0:02:55.2]} 4.
fxe4 {[%clk 0:03:00.1]} 4... e5 {[%clk 0:02:52.1]} 5. Nf3 {[%clk 0:02:59.3]}
5... exd4 {[%clk 0:02:51.7]} 6. Bc4 {[%clk 0:02:56.2]} 6... Bc5 {[%clk
0:02:41.7]} 7. O-O {[%clk 0:02:48.7]} 7... Nf6 {[%clk 0:02:32]} 8. Ng5 {[%clk
0:02:25.6]} 8... O-O {[%clk 0:02:29.9]} 9. e5 {[%clk 0:02:16.2]} 9... Nd5 {[%clk
0:02:29.4]} 10. Qh5 {[%clk 0:02:06.1]} 10... h6 {[%clk 0:02:19.5]} 11. Nxf7
{[%clk 0:02:01.8]} 11... Qe7 {[%clk 0:02:11.1]} 12. Nxh6+ {[%clk 0:01:36.2]}
12... gxh6 {[%clk 0:02:09]} 13. Qg6+ {[%clk 0:01:21.4]} 13... Kh8 {[%clk
0:01:58.2]} 14. Qxh6+ {[%clk 0:01:20]} 14... Kg8 {[%clk 0:01:58.3]} 15. Qg6+
{[%clk 0:01:09.8]} 15... Kh8 {[%clk 0:01:56.8]} 16. Qh6+ {[%clk 0:01:01]} 16...
Kg8 {[%clk 0:01:55.2]} 17. Qg6+ {[%clk 0:01:00.4]} 17... Kh8 {[%clk 0:01:53]}
18. Qh6+ {[%clk 0:01:00.3]} 1/2-1/2

[Event "Late-Titled-Tuesday-Blitz-March-19-2024"]
[Site "Chess.com"]
[Date "2024.03.19"]
[Round "7"]
[White "Airquake"]
[Black "Tugrik1969"]
[Result "1-0"]
[WhiteElo "2639"]
[BlackElo "2389"]
[TimeControl "180+1"]
[EndTime "15:12:55 PDT"]
[Termination "Airquake won by resignation"]

1. f3 {[%clk 0:03:00.9]} 1... e5 {[%clk 0:02:56.3]} 2. Kf2 {[%clk 0:03:01.8]}
2... d5 {[%clk 0:02:55.8]} 3. g3 {[%clk 0:03:02.2]} 3... Nc6 {[%clk 0:02:54.3]}
4. Kg2 {[%clk 0:03:03.1]} 4... h5 {[%clk 0:02:54.2]} 5. h4 {[%clk 0:03:02.5]}
5... Nf6 {[%clk 0:02:53.8]} 6. d3 {[%clk 0:03:02.2]} 6... Bc5 {[%clk 0:02:52.2]}
7. Bg5 {[%clk 0:03:00.9]} 7... Be6 {[%clk 0:02:51.7]} 8. Nd2 {[%clk 0:03:00.3]}
8... Qd7 {[%clk 0:02:50.9]} 9. Nb3 {[%clk 0:02:59]} 9... Bb6 {[%clk 0:02:50.5]}
10. e4 {[%clk 0:02:59.5]} 10... O-O-O {[%clk 0:02:44.8]} 11. Qe1 {[%clk
0:02:58.4]} 11... Rde8 {[%clk 0:02:39.9]} 12. Rd1 {[%clk 0:02:57.4]} 12... Nh7
{[%clk 0:02:38]} 13. Bc1 {[%clk 0:02:55.8]} 13... f5 {[%clk 0:02:34.2]} 14. exd5
{[%clk 0:02:55.1]} 14... Bxd5 {[%clk 0:02:33.6]} 15. c4 {[%clk 0:02:55.8]} 15...
Bf7 {[%clk 0:02:14]} 16. Nh3 {[%clk 0:02:56.2]} 16... e4 {[%clk 0:02:05.7]} 17.
dxe4 {[%clk 0:02:56.2]} 17... fxe4 {[%clk 0:02:06]} 18. f4 {[%clk 0:02:51]}
18... Qg4 {[%clk 0:02:01.8]} 19. Be2 {[%clk 0:02:51]} 19... Qe6 {[%clk
0:01:59.3]} 20. c5 {[%clk 0:02:51]} 20... Nf6 {[%clk 0:01:38]} 21. cxb6 {[%clk
0:02:45.5]} 21... axb6 {[%clk 0:01:38.9]} 22. Ng5 {[%clk 0:02:45.6]} 22... Qe7
{[%clk 0:01:37]} 23. Qc3 {[%clk 0:02:44.8]} 23... Bd5 {[%clk 0:01:34.3]} 24.
Rhe1 {[%clk 0:02:43.3]} 1-0

[Event "Late-Titled-Tuesday-Blitz-March-19-2024"]
[Site "Chess.com"]
[Date "2024.03.19"]
[Round "7"]
[White "GlavkonVVS"]
[Black "EsmeraldasAnderson03"]
[Result "0-1"]
[WhiteElo "2669"]
[BlackElo "2569"]
[TimeControl "180+1"]
[EndTime "15:13:14 PDT"]
[Termination "EsmeraldasAnderson03 won by resignation"]

1. c4 {[%clk 0:03:00.9]} 1... e5 {[%clk 0:02:59.6]} 2. Nc3 {[%clk 0:03:00.6]}
2... Nc6 {[%clk 0:03:00.1]} 3. g3 {[%clk 0:03:00.7]} 3... f5 {[%clk 0:03:00.3]}
4. Bg2 {[%clk 0:03:00.9]} 4... Nf6 {[%clk 0:03:01]} 5. d3 {[%clk 0:03:01.4]}
5... Bb4 {[%clk 0:03:00.5]} 6. Bd2 {[%clk 0:03:00.4]} 6... Bxc3 {[%clk
0:02:59.4]} 7. Bxc3 {[%clk 0:03:00.2]} 7... d6 {[%clk 0:03:00.3]} 8. Nf3 {[%clk
0:03:00]} 8... O-O {[%clk 0:03:00.9]} 9. O-O {[%clk 0:02:59.9]} 9... Qe8 {[%clk
0:03:00]} 10. b4 {[%clk 0:02:59.7]} 10... Qh5 {[%clk 0:02:59.9]} 11. b5 {[%clk
0:03:00]} 11... Ne7 {[%clk 0:03:00.5]} 12. c5 {[%clk 0:02:59.9]} 12... f4 {[%clk
0:02:59.1]} 13. cxd6 {[%clk 0:02:57.4]} 13... cxd6 {[%clk 0:02:58.3]} 14. Qb3+
{[%clk 0:02:57.3]} 14... Kh8 {[%clk 0:02:49]} 15. Bb4 {[%clk 0:02:35]} 15... Nf5
{[%clk 0:02:47]} 16. Nxe5 {[%clk 0:02:27.5]} 16... dxe5 {[%clk 0:02:44.3]} 17.
Bxf8 {[%clk 0:02:26.8]} 17... fxg3 {[%clk 0:02:26.8]} 18. fxg3 {[%clk
0:02:25.2]} 18... Ng4 {[%clk 0:02:02.1]} 19. h3 {[%clk 0:02:08.3]} 19... Nxg3
{[%clk 0:01:55.9]} 20. hxg4 {[%clk 0:02:05.6]} 20... Bxg4 {[%clk 0:01:56]} 21.
Qf7 {[%clk 0:01:56]} 21... Nxe2+ {[%clk 0:01:54.3]} 22. Kf2 {[%clk 0:01:51.6]}
22... Qxf7+ {[%clk 0:01:54.6]} 23. Ke3 {[%clk 0:01:48.9]} 23... Qg6 {[%clk
0:01:44.6]} 24. Be7 {[%clk 0:01:38.4]} 24... Re8 {[%clk 0:01:41.1]} 25. Rae1
{[%clk 0:01:14.7]} 25... Nf4 {[%clk 0:01:39.7]} 26. Be4 {[%clk 0:01:11.8]} 26...
Qb6+ {[%clk 0:01:39]} 0-1

[Event "Late-Titled-Tuesday-Blitz-March-19-2024"]
[Site "Chess.com"]
[Date "2024.03.19"]
[Round "7"]
[White "Piotrek1979"]
[Black "HanSchut"]
[Result "1-0"]
[WhiteElo "2487"]
[BlackElo "2317"]
[TimeControl "180+1"]
[EndTime "15:13:24 PDT"]
[Termination "Piotrek1979 won by resignation"]

1. c4 {[%clk 0:03:00.9]} 1... Nf6 {[%clk 0:02:59.4]} 2. Nf3 {[%clk 0:02:59]}
2... g6 {[%clk 0:02:59.2]} 3. b3 {[%clk 0:02:57]} 3... Bg7 {[%clk 0:02:57.8]} 4.
Bb2 {[%clk 0:02:57.9]} 4... O-O {[%clk 0:02:58]} 5. e3 {[%clk 0:02:55.6]} 5...
d5 {[%clk 0:02:58]} 6. cxd5 {[%clk 0:02:51.2]} 6... Nxd5 {[%clk 0:02:58.9]} 7.
Bxg7 {[%clk 0:02:49.9]} 7... Kxg7 {[%clk 0:02:59.8]} 8. Qc1 {[%clk 0:02:46.6]}
8... f6 {[%clk 0:02:57.2]} 9. a3 {[%clk 0:02:44.9]} 9... e5 {[%clk 0:02:56.2]}
10. b4 {[%clk 0:02:35.5]} 10... Be6 {[%clk 0:02:54.4]} 11. Be2 {[%clk
0:02:31.3]} 11... Qd7 {[%clk 0:02:48.7]} 12. Qb2 {[%clk 0:02:28.9]} 12... Nc6
{[%clk 0:02:40.8]} 13. d3 {[%clk 0:02:23.9]} 13... Rfc8 {[%clk 0:02:28]} 14.
Nbd2 {[%clk 0:02:21.6]} 14... a6 {[%clk 0:02:16.1]} 15. Ne4 {[%clk 0:02:19.8]}
15... b6 {[%clk 0:02:10.2]} 16. h4 {[%clk 0:02:15]} 16... h5 {[%clk 0:02:05.6]}
17. Rc1 {[%clk 0:02:08.6]} 17... Bf5 {[%clk 0:01:59.6]} 18. Nfd2 {[%clk
0:02:03.9]} 18... Nce7 {[%clk 0:01:54.3]} 19. g3 {[%clk 0:01:59.5]} 19... Bg4
{[%clk 0:01:47.5]} 20. Nf3 {[%clk 0:01:46.1]} 20... Nf5 {[%clk 0:01:27.5]} 21.
Nxe5 {[%clk 0:01:40.2]} 21... fxe5 {[%clk 0:01:23.3]} 22. Qxe5+ {[%clk
0:01:41.1]} 22... Kg8 {[%clk 0:01:10.4]} 23. Qxd5+ {[%clk 0:01:40.2]} 23... Qxd5
{[%clk 0:01:07.2]} 24. Nf6+ {[%clk 0:01:40.8]} 24... Kf7 {[%clk 0:01:04.8]} 25.
Nxd5 {[%clk 0:01:41.7]} 25... Bxe2 {[%clk 0:01:04.8]} 26. Kxe2 {[%clk
0:01:41.3]} 26... c5 {[%clk 0:01:04.9]} 27. Nxb6 {[%clk 0:01:40.2]} 1-0

[Event "Late-Titled-Tuesday-Blitz-March-19-2024"]
[Site "Chess.com"]
[Date "2024.03.19"]
[Round "7"]
[White "Smiechu"]
[Black "lluiss"]
[Result "1-0"]
[WhiteElo "2430"]
[BlackElo "2262"]
[TimeControl "180+1"]
[EndTime "15:13:37 PDT"]
[Termination "Smiechu won by resignation"]

1. e4 {[%clk 0:02:58.1]} 1... c5 {[%clk 0:02:59.2]} 2. Nf3 {[%clk 0:02:57.8]}
2... d6 {[%clk 0:02:59.7]} 3. d4 {[%clk 0:02:57.6]} 3... cxd4 {[%clk 0:03:00.6]}
4. Nxd4 {[%clk 0:02:57.5]} 4... Nf6 {[%clk 0:03:00.6]} 5. Nc3 {[%clk 0:02:58.1]}
5... g6 {[%clk 0:03:00.7]} 6. Be3 {[%clk 0:02:58.5]} 6... Bg7 {[%clk 0:03:01.1]}
7. f3 {[%clk 0:02:59.2]} 7... O-O {[%clk 0:03:01.5]} 8. Qd2 {[%clk 0:02:59.9]}
8... Nc6 {[%clk 0:03:01.8]} 9. Bc4 {[%clk 0:03:00]} 9... Bd7 {[%clk 0:03:01.4]}
10. h4 {[%clk 0:03:00.3]} 10... Ne5 {[%clk 0:03:00]} 11. Bb3 {[%clk 0:02:58]}
11... h5 {[%clk 0:03:00.6]} 12. O-O-O {[%clk 0:02:57.2]} 12... Rc8 {[%clk
0:02:59.5]} 13. Bg5 {[%clk 0:02:57.4]} 13... Re8 {[%clk 0:02:51.6]} 14. g4
{[%clk 0:02:46.6]} 14... Qa5 {[%clk 0:02:20]} 15. Bxf6 {[%clk 0:02:28.8]} 15...
Bxf6 {[%clk 0:02:17.4]} 16. gxh5 {[%clk 0:02:29.4]} 16... gxh5 {[%clk 0:02:04]}
17. Qh6 {[%clk 0:02:24.9]} 17... Bg7 {[%clk 0:01:47.1]} 18. Rhg1 {[%clk
0:02:22.1]} 18... Ng4 {[%clk 0:01:23.5]} 19. Qd2 {[%clk 0:02:07.6]} 19... Bh6
{[%clk 0:00:15.9]} 20. Qxh6 {[%clk 0:02:00.2]} 1-0